Workbook

Sheet PPMT Function Quick View
B2: Excel PPMT Function
B3: Quick Overview
B5: Annual Payment (Principal in1st Period)
B6: =PPMT(D11,D12,D13,-D10) -> 1196.302557 | C6: >>Formula>> =PPMT(D11,D12,D13,-D10)
C7: **D11=rate, D12=per, D13=nper, D10=pv
B9: Description | C9: Referring Argument | D9: Values | F9: Monthly Payment
B10: Loan Amount | C10: pv | D10: 20000 | F10: Principal in 1st Period | G10: =-PPMT(D11/12,D12,D12*D13,D10) -> 783.3278274
B11: Annual Interest Rate | C11: rate | D11: 0.07 | F11: Used Formula= -PPMT(D11/12,D12,D12*D13,D10)
B12: Loan Term (in years) | C12: per | D12: 2 | F12: **D11=rate, D12=per, D13=nper, D10=pv
B13: Payments Per Year | C13: nper | D13: 12
B14: Desired Cash Balance (after last payment) | C14: [fv] | D14: ---
B15: Payment Type | C15: [type] (0-end of period, 1-beginning of the period) | D15: 0
B17: **Financial Function
B18: **Get Principal Payment in a Given Period

Sheet Capital Payment
B2: Excel PPMT Function
B3: Calculating Capital Payments During a Period
B5: Description | C5: Argument | D5: Values | F5: Period | G5: Capital Payment
B6: Loan Amount | C6: 778.7849154 | D6: 20000 | F6: 1 | G6: =PPMT($D$7/$D$9,F6,$D$8*$D$9,-$D$6) -> 4870.647346
B7: Annual Interest Rate | C7: rate | D7: 0.07 | F7: 2 | G7: =PPMT($D$7/$D$9,F7,$D$8*$D$9,-$D$6) -> 4955.883674
B8: Loan Term (in years) | C8: per | D8: 1 | F8: 3 | G8: 5042.611638
B9: Payments Per Year | C9: nper | D9: 4 | F9: 4 | G9: 5130.857342
B10: Desired Cash Balance (after last payment) | C10: [fv] | D10: -- | F10: Total Sum | G10: =SUM(G6:G9) -> 20000
B11: Payment Type | C11: [type] (0-end of period, 1-beginning of the period) | D11: 0

Sheet Calculating Desired Balance
B2: Excel PPMT Function
B3: Calculates Capital Payments to End Up a Balance
B5: Description | C5: Argument | D5: Values | F5: Period | G5: Capital Payment
B6: Loan Amount | C6: pv | D6: 0 | F6: 1 | G6: =PPMT($D$7/$D$9,F6,$D$8*$D$9,$D$6,$D$10,$D$11) -> -2350.858467
B7: Annual Interest Rate | C7: rate | D7: 0.07 | F7: 2 | G7: =PPMT($D$7/$D$9,F7,$D$8*$D$9,$D$6,$D$10,$D$11) -> -2391.99849
B8: Loan Term (in years) | C8: per | D8: 2 | F8: 3 | G8: -2433.858463
B9: Payments Per Year | C9: nper | D9: 4 | F9: 4 | G9: -2476.450987
B10: Desired Cash Balance (after last payment) | C10: [fv] | D10: 20000 | F10: 5 | G10: -2519.788879
B11: Payment Type | C11: [type] (0-end of period, 1-beginning of the period) | D11: 0 | F11: 6 | G11: -2563.885184
F12: 7 | G12: -2608.753175
F13: 8 | G13: -2654.406355
F14: Total Sum | G14: =SUM(G6:G13) -> -20000

Sheet VBA Macro Code
B2: Excel PPMT Function
B3: Used in VBA Macro
C5: Monthly Payment (Principal in1st Period)
C6: 63.0989875
B8: Description | C8: Referring Argument | D8: Values
B9: Loan Amount | C9: pv | D9: 20000
B10: Annual Interest Rate | C10: rate | D10: 0.07
B11: Loan Term (in years) | C11: per | D11: 15
B12: Payments Per Year | C12: nper | D12: 12
B13: Desired Cash Balance (after last payment) | C13: [fv] | D13: 0
B14: Payment Type | C14: [type] (0-end of period, 1-beginning of the period) | D14: 0

Sheet PPMT PMT IPMT
B2: Differentiate Between PMT, PPMT and IPMT
B4: Description | C4: Argument | D4: Values | F4: Period | G4: PPMT | I4: Period | J4: PMT | L4: Period | M4: IPMT
B5: Loan Amount | C5: 778.7849154 | D5: 20000 | F5: 1 | G5: =PPMT($D$6/$D$8,F5,$D$7*$D$8,-$D$5,0,0) -> 4870.647346 | I5: 1 | J5: =PMT($D$6/$D$8,$D$7*$D$8,-$D$5,0,0) -> 5220.647346 | L5: 1 | M5: =IPMT($D$6/$D$8,L5,$D$7*$D$8,-$D$5,0,0) -> 350
B6: Annual Interest Rate | C6: rate | D6: 0.07 | F6: 2 | G6: =PPMT($D$6/$D$8,F6,$D$7*$D$8,-$D$5,0,0) -> 4955.883674 | I6: 2 | J6: =PMT($D$6/$D$8,$D$7*$D$8,-$D$5,0,0) -> 5220.647346 | L6: 2 | M6: =IPMT($D$6/$D$8,L6,$D$7*$D$8,-$D$5,0,0) -> 264.7636715
B7: Loan Term (in years) | C7: per | D7: 1 | F7: 3 | G7: 5042.611638 | I7: 3 | J7: 5220.647346 | L7: 3 | M7: 178.0357072
B8: Payments Per Year | C8: nper | D8: 4 | F8: 4 | G8: 5130.857342 | I8: 4 | J8: 5220.647346 | L8: 4 | M8: 89.79000349
B9: Desired Cash Balance (after last payment) | C9: [fv] | D9: -- | F9: Total Sum | G9: =SUM(G5:G8) -> 20000 | I9: Total Sum | J9: =SUM(J5:J8) -> 20882.58938 | L9: Total Sum | M9: =SUM(M5:M8) -> 882.5893821
B10: Payment Type | C10: [type] (0-end of period, 1-beginning of the period) | D10: 0
